fUST/lending_fUST_20250221
["ID","MTS","AMOUNT","RATE_DAILY","PERIOD"]
[353818164,1740077442557,-500.0,0.0001378,2]
[353818165,1740077442566,-1035.85,0.0001378,2]
[353818166,1740077442575,-500.0,0.0001378,2]
[353818167,1740077442589,-500.0,0.0001378,2]
[353818168,1740077442598,-596.47,0.0001378,2]
[353818169,1740077442607,-661.45,0.0001378,2]
[353818170,1740077442617,-500.0,0.0001378,2]
[353818171,1740077442626,-461.56442783,0.0001378,2]
[353818172,1740077442635,-500.0,0.0001378,2]
[353818173,1740077442644,-500.0,0.0001378,2]
[353818174,1740077442653,-638.35,0.0001378,2]
[353818175,1740077442663,-500.0,0.0001378,2]
[353818176,1740077442672,-501.8015462,0.0001378,2]
[353818177,1740077442682,-500.0,0.0001378,2]
[353818178,1740077442691,-500.0,0.0001378,2]
[353818179,1740077442701,-500.0,0.0001378,2]
[353818180,1740077442714,-500.0,0.0001378,2]
[353818181,1740077442723,-500.0,0.0001378,2]
[353818182,1740077442733,-708.23,0.0001378,2]
[353818183,1740077442742,-500.0,0.0001378,2]
[353818184,1740077442752,-500.0,0.0001378,2]
[353818185,1740077442763,-500.0,0.0001378,2]
[353818186,1740077442772,-547.99,0.0001378,2]
[353818187,1740077442782,-500.0,0.0001378,2]
[353818188,1740077442791,-643.73,0.0001378,2]
[353818189,1740077442800,-500.0,0.0001378,2]
[353818190,1740077442809,-500.0,0.0001378,2]
[353818191,1740077442819,-1109.9,0.0001378,2]
[353818192,1740077442828,-500.0,0.0001378,2]
[353818193,1740077442838,-500.0,0.0001378,2]
[353818194,1740077442847,-500.0,0.0001378,2]
[353818195,1740077442856,-500.0,0.0001378,2]
[353818196,1740077442865,-500.0,0.0001378,2]
[353818197,1740077442874,-500.0,0.0001378,2]
[353818198,1740077442883,-500.0,0.0001378,2]
[353818199,1740077442892,-503.27,0.0001378,2]
[353818200,1740077442902,-500.0,0.0001378,2]
[353818202,1740077442911,-500.0,0.0001378,2]
[353818204,1740077442920,-500.0,0.0001378,2]
[353818205,1740077442929,-500.0,0.0001378,2]
[353818206,1740077442939,-500.0,0.0001378,2]
[353818207,1740077442949,-1365.79,0.0001378,2]
[353818208,1740077442958,-890.14,0.0001378,2]
[353818209,1740077442967,-500.0,0.0001378,2]
[353818210,1740077442976,-500.0,0.0001378,2]
[353818211,1740077442986,-500.0,0.0001378,2]
[353818212,1740077442995,-500.0,0.0001378,2]
[353818213,1740077443004,-500.0,0.0001378,2]
[353818215,1740077443014,-513.80523943,0.0001378,2]
[353818218,1740077443023,-500.0,0.0001378,2]
[353818221,1740077443032,-500.0,0.0001378,2]
[353818223,1740077443046,-500.0,0.0001378,2]
[353818224,1740077443056,-500.0,0.0001378,2]
[353818225,1740077443065,-727.5,0.0001378,2]
[353818226,1740077443074,-199.30342082,0.0001378,2]
[353818227,1740077443086,-500.0,0.0001378,2]
[353818228,1740077443096,-518.62,0.0001378,2]
[353818229,1740077443106,-500.0,0.0001378,2]
[353818230,1740077443116,-740.12,0.0001378,2]
[353818231,1740077443126,-500.0,0.0001378,2]
[353818232,1740077443135,-500.0,0.0001378,2]
[353818233,1740077443145,-500.0,0.0001378,2]
[353818234,1740077443155,-500.0,0.0001378,2]
[353818235,1740077443165,-447.67448452,0.0001378,2]
[353818236,1740077443175,-500.0,0.0001378,2]
[353818237,1740077443184,-633.75127506,0.0001378,2]
[353818238,1740077443194,-500.0,0.0001378,2]
[353818239,1740077443203,-500.0,0.0001378,2]
[353818240,1740077443212,-500.0,0.0001378,2]
[353818241,1740077443221,-529.01,0.0001378,2]
[353818243,1740077443231,-500.0,0.0001378,2]
[353818244,1740077443240,-609.29778675,0.0001378,2]
[353818245,1740077443249,-573.79,0.0001378,2]
[353818246,1740077443260,-500.0,0.0001378,2]
[353818247,1740077443270,-151.608241,0.0001378,2]
[353818248,1740077443279,-500.0,0.0001378,2]
[353818249,1740077443289,-500.0,0.0001378,2]
[353818250,1740077443299,-503.99027307,0.0001378,2]
[353818251,1740077443309,-500.0,0.0001378,2]
[353818252,1740077443319,-500.0,0.0001378,2]
[353818253,1740077443329,-506.93085562,0.0001378,2]
[353818255,1740077443339,-9108.22,0.0001378,2]
[353818257,1740077443349,-501.88941912,0.0001378,2]
[353818259,1740077443359,-500.0,0.0001378,2]
[353818261,1740077443370,-500.0,0.0001378,2]
[353818263,1740077443380,-500.0,0.0001378,2]
[353818265,1740077443390,-500.0,0.0001378,2]
[353818279,1740077443491,-3470.12,0.0001378,2]
[353818281,1740077443515,-2034.19,0.0001378,2]
[353818283,1740077443525,-500.0,0.0001378,2]
[353818285,1740077443534,-500.0,0.0001378,2]
[353818287,1740077443544,-269.40185819,0.0001378,2]
[353818289,1740077443553,-793.8,0.0001378,2]
[353818291,1740077443562,-500.0,0.0001378,2]
[353818293,1740077443572,-638.37,0.0001378,2]
[353818295,1740077443581,-500.0,0.0001378,2]
[353818297,1740077443591,-3406.96,0.0001378,2]
[353818299,1740077443600,-541.85448475,0.0001378,2]
[353818301,1740077443609,-722.19,0.0001378,2]
[353818303,1740077443619,-500.0,0.0001378,2]
[353818305,1740077443628,-500.0,0.0001378,2]
[353818307,1740077443637,-570.15,0.0001378,2]
[353818309,1740077443646,-1882.52,0.0001378,2]
[353818311,1740077443656,-500.0,0.0001378,2]
[353818313,1740077443666,-1444.89,0.0001378,2]
[353818315,1740077443676,-500.0,0.0001378,2]
[353818317,1740077443686,-500.0,0.0001378,2]
[353818319,1740077443696,-500.0,0.0001378,2]
[353818321,1740077443706,-500.0,0.0001378,2]
[353818323,1740077443715,-556.08,0.0001378,2]
[353818325,1740077443724,-1178.56,0.0001378,2]
[353818327,1740077443733,-500.0,0.0001378,2]
[353818329,1740077443742,-500.0,0.0001378,2]
[353818331,1740077443752,-500.0,0.0001378,2]
[353818333,1740077443761,-500.0,0.0001378,2]
[353818335,1740077443771,-16808.24,0.0001378,2]
[353818337,1740077443781,-985.31,0.0001378,2]
[353818339,1740077443790,-2786.77,0.0001378,2]
[353818341,1740077443799,-505.18893374,0.0001378,2]
[353818343,1740077443809,-1215.28,0.0001378,2]
[353818345,1740077443819,-556.94,0.0001378,2]
[353818347,1740077443828,-1191.46,0.0001378,2]
[353818349,1740077443837,-3073.52,0.0001378,2]
[353818351,1740077443847,-40867.69,0.0001378,2]
[353818353,1740077443857,-6841.19,0.0001378,2]
[353818355,1740077443866,-500.0,0.0001378,2]
[353818357,1740077443876,-2377.75,0.0001378,2]
[353818359,1740077443885,-3817.15,0.0001378,2]
[353818361,1740077443895,-920.47,0.0001378,2]
[353818363,1740077443904,-1283.52,0.0001378,2]
[353818365,1740077443914,-500.0,0.0001378,2]
[353818367,1740077443923,-500.0,0.0001378,2]
[353818369,1740077443933,-500.0,0.0001378,2]
[353818371,1740077443942,-500.0,0.0001378,2]
[353818373,1740077443952,-500.0,0.0001378,2]
[353818375,1740077443961,-500.0,0.0001378,2]
[353818377,1740077443971,-4061.03,0.0001378,2]
[353818379,1740077443980,-336.5431947,0.0001378,2]
[353818381,1740077443990,-535.64,0.0001378,2]
[353818384,1740077444001,-500.0,0.0001378,2]
[353818385,1740077444013,-500.0,0.0001378,2]
[353818388,1740077444023,-500.0,0.0001378,2]
[353818390,1740077444033,-500.0,0.0001378,2]
[353818392,1740077444049,-2345.68,0.0001378,2]
[353818393,1740077444059,-500.0,0.0001378,2]
[353818396,1740077444068,-500.0,0.0001378,2]
[353818398,1740077444078,-1779.96,0.0001378,2]
[353818400,1740077444088,-500.0,0.0001378,2]
[353818401,1740077444097,-500.0,0.0001378,2]
[353818403,1740077444107,-182.26280745,0.0001378,2]
[353818406,1740077444116,-766.59,0.0001378,2]
[353818408,1740077444126,-500.0,0.0001378,2]
[353818409,1740077444135,-1327.91,0.0001378,2]
[353818412,1740077444145,-500.0,0.0001378,2]
[353818414,1740077444154,-500.0,0.0001378,2]
[353818415,1740077444163,-500.0,0.0001378,2]
[353818417,1740077444172,-500.0,0.0001378,2]
[353818419,1740077444182,-1733.51,0.0001378,2]
[353818421,1740077444191,-500.0,0.0001378,2]
[353818424,1740077444201,-5133.29,0.0001378,2]
[353818425,1740077444210,-1849.39,0.0001378,2]
[353818427,1740077444220,-500.0,0.0001378,2]
[353818430,1740077444230,-2277.2,0.0001378,2]
[353818431,1740077444239,-500.0,0.0001378,2]
[353818434,1740077444249,-500.0,0.0001378,2]
[353818435,1740077444260,-569.05175497,0.0001378,2]
[353818437,1740077444270,-500.0,0.0001378,2]
[353818440,1740077444280,-1852.48,0.0001378,2]
[353818442,1740077444289,-500.0,0.0001378,2]
[353818444,1740077444299,-500.0,0.0001378,2]
[353818446,1740077444309,-500.0,0.0001378,2]
[353818448,1740077444319,-763.89,0.0001378,2]
[353818450,1740077444329,-500.0,0.0001378,2]
[353818452,1740077444338,-500.0,0.0001378,2]
[353818453,1740077444348,-500.0,0.0001378,2]
[353818456,1740077444358,-1350.36,0.0001378,2]
[353818458,1740077444368,-500.0,0.0001378,2]
[353818460,1740077444378,-15474.5,0.0001378,2]
[353818461,1740077444388,-500.00569627,0.0001378,2]
[353818464,1740077444397,-605.42324317,0.00013782,2]
[353818466,1740077444407,-186.732,0.0001382,2]
[353818468,1740077444417,-3000.0,0.00013845,2]
[353818470,1740077444426,-235.0361353,0.00013845,2]
[353818471,1740077444436,-235.0361353,0.00013845,2]
[353818474,1740077444445,-235.0361353,0.00013845,2]
[353818476,1740077444455,-235.0361353,0.00013845,2]
[353818478,1740077444464,-235.0361353,0.00013845,2]
[353818480,1740077444474,-235.0361353,0.00013845,2]
[353818482,1740077444483,-235.0361353,0.00013845,2]
[353818484,1740077444491,-235.0361353,0.00013845,2]
[353818486,1740077444500,-235.0361353,0.00013845,2]
[353818488,1740077444512,-235.0361353,0.00013845,2]
[353818490,1740077444521,-235.0361353,0.00013845,2]
[353818492,1740077444530,-235.0361353,0.00013845,2]
[353818494,1740077444540,-235.0361353,0.00013845,2]
[353818496,1740077444550,-235.0361353,0.00013845,2]
[353818498,1740077444559,-235.0361353,0.00013845,2]
[353818500,1740077444568,-235.0361353,0.00013845,2]
[353818502,1740077444578,-235.0361353,0.00013845,2]
[353818504,1740077444588,-235.0361353,0.00013845,2]
[353818506,1740077444597,-235.0361353,0.00013845,2]
[353818508,1740077444606,-235.03,0.00013845,2]
[353818510,1740077444616,-1125.78062592,0.00013845,2]
[353818512,1740077444625,-500.0,0.00013863,2]
[353818514,1740077444634,-494.87796421,0.00013863,2]
[353818516,1740077444643,-500.0,0.00013863,2]
[353818518,1740077444653,-457.55599559,0.00013863,2]
[353818520,1740077444662,-500.0,0.00013863,2]
[353818522,1740077444672,-500.0,0.00013863,2]
[353818524,1740077444681,-500.0,0.00013863,2]
[353818526,1740077444691,-633.71,0.00013863,2]
[353818528,1740077444701,-500.0,0.00013863,2]
[353818530,1740077444710,-500.0,0.00013863,2]
[353818532,1740077444719,-602.28,0.00013863,2]
[353818534,1740077444729,-500.0,0.00013863,2]
[353818536,1740077444739,-500.0,0.00013863,2]
[353818538,1740077444749,-500.0,0.00013863,2]
[353818540,1740077444759,-605.27,0.00013863,2]
[353818542,1740077444770,-500.0,0.00013863,2]
[353818544,1740077444780,-500.0,0.00013863,2]
[353818546,1740077444790,-500.0,0.00013863,2]
[353818548,1740077444800,-500.0,0.00013863,2]
[353818550,1740077444809,-500.0,0.00013863,2]
[353818552,1740077444819,-500.0,0.00013863,2]
[353818554,1740077444829,-500.0,0.00013863,2]
[353818556,1740077444839,-500.0,0.00013863,2]
[353818558,1740077444848,-500.0,0.00013863,2]
[353818560,1740077444857,-151.75449317,0.00013863,2]
[353818562,1740077444867,-500.0,0.00013863,2]
[353818563,1740077444876,-500.0,0.00013863,2]
[353818565,1740077444886,-500.0,0.00013863,2]
[353818567,1740077444896,-664.37,0.00013863,2]
[353818569,1740077444905,-500.0,0.00013863,2]
[353818571,1740077444915,-500.0,0.00013863,2]
[353818573,1740077444924,-500.0,0.00013863,2]
[353818575,1740077444933,-868.35,0.00013863,2]
[353818577,1740077444942,-500.0,0.00013863,2]
[353818579,1740077444952,-500.0,0.00013863,2]
[353818581,1740077444962,-500.0,0.00013863,2]
[353818583,1740077444972,-500.0,0.00013863,2]
[353818585,1740077444982,-530.01,0.00013863,2]
[353818587,1740077444992,-1441.13,0.00013863,2]
[353818589,1740077445002,-557.02,0.00013863,2]
[353818591,1740077445012,-500.0,0.00013863,2]
[353818593,1740077445021,-500.0,0.00013863,2]
[353818595,1740077445032,-403.24226921,0.00013863,2]
[353818597,1740077445045,-364.87954545,0.00013863,2]
[353818599,1740077445055,-500.0,0.00013863,2]
[353818601,1740077445066,-500.0,0.00013863,2]
[353818603,1740077445077,-1035.85,0.00013863,2]
[353818605,1740077445087,-500.0,0.00013863,2]
[353818607,1740077445098,-596.47,0.00013863,2]
[353818609,1740077445109,-661.45,0.00013863,2]
[353818611,1740077445118,-500.0,0.00013863,2]
[353818613,1740077445128,-500.0,0.00013863,2]
[353818615,1740077445138,-638.35,0.00013863,2]
[353818617,1740077445148,-500.0,0.00013863,2]
[353818619,1740077445158,-500.0,0.00013863,2]
[353818621,1740077445167,-500.0,0.00013863,2]
[353818623,1740077445177,-500.0,0.00013863,2]
[353818625,1740077445186,-500.0,0.00013863,2]
[353818627,1740077445196,-708.23,0.00013863,2]
[353818629,1740077445206,-500.0,0.00013863,2]
[353818632,1740077445215,-500.0,0.00013863,2]
[353818633,1740077445225,-547.99,0.00013863,2]
[353818635,1740077445234,-500.0,0.00013863,2]
[353818637,1740077445244,-643.73,0.00013863,2]
[353818639,1740077445253,-500.0,0.00013863,2]
[353818641,1740077445263,-500.0,0.00013863,2]
[353818643,1740077445273,-1109.9,0.00013863,2]
[353818645,1740077445283,-500.0,0.00013863,2]
[353818648,1740077445293,-500.0,0.00013863,2]
[353818650,1740077445303,-500.0,0.00013863,2]
[353818652,1740077445312,-500.0,0.00013863,2]
[353818654,1740077445322,-500.0,0.00013863,2]
[353818655,1740077445332,-503.27,0.00013863,2]
[353818658,1740077445341,-500.0,0.00013863,2]
[353818660,1740077445351,-500.0,0.00013863,2]
[353818662,1740077445360,-500.0,0.00013863,2]
[353818664,1740077445370,-500.0,0.00013863,2]
[353818666,1740077445379,-500.0,0.00013863,2]
[353818667,1740077445388,-1365.79,0.00013863,2]
[353818670,1740077445398,-890.14,0.00013863,2]
[353818671,1740077445408,-500.0,0.00013863,2]
[353818673,1740077445417,-500.0,0.00013863,2]
[353818675,1740077445426,-500.0,0.00013863,2]
[353818677,1740077445435,-500.0,0.00013863,2]
[353818679,1740077445445,-500.0,0.00013863,2]
[353818682,1740077445454,-500.0,0.00013863,2]
[353818684,1740077445463,-500.0,0.00013863,2]
[353818686,1740077445473,-500.0,0.00013863,2]
[353818687,1740077445482,-727.5,0.00013863,2]
[353818690,1740077445492,-518.62,0.00013863,2]
[353818692,1740077445501,-500.0,0.00013863,2]
[353818694,1740077445511,-740.12,0.00013863,2]
[353818695,1740077445520,-510.31211764,0.00013863,2]
[353818698,1740077445529,-501.26296343,0.00013863,2]
[353818700,1740077445539,-503.57087519,0.00013863,2]
[353818701,1740077445548,-500.0,0.00013863,2]
[353818702,1740077445557,-500.0,0.00013863,2]
[353818703,1740077445567,-500.0,0.00013863,2]
[353818704,1740077445577,-529.01,0.00013863,2]
[353818705,1740077445587,-573.79,0.00013863,2]
[353818706,1740077445596,-508.1135934,0.00013863,2]
[353818707,1740077445606,-500.0,0.00013863,2]
[353818708,1740077445616,-500.0,0.00013863,2]
[353818709,1740077445626,-500.0,0.00013863,2]
[353818710,1740077445635,-500.0,0.00013863,2]
[353818711,1740077445645,-9108.22,0.00013863,2]
[353818712,1740077445656,-500.0,0.00013863,2]
[353818713,1740077445666,-3470.12,0.00013863,2]
[353818714,1740077445676,-2034.19,0.00013863,2]
[353818715,1740077445686,-500.0,0.00013863,2]
[353818716,1740077445696,-357.16343885,0.00013863,2]
[353818717,1740077445706,-793.8,0.00013863,2]
[353818718,1740077445716,-500.0,0.00013863,2]
[353818720,1740077445725,-638.37,0.00013863,2]
[353818722,1740077445735,-3406.96,0.00013863,2]
[353818724,1740077445744,-722.19,0.00013863,2]
[353818726,1740077445754,-500.0,0.00013863,2]
[353818740,1740077445863,-500.0,0.00013863,2]
[353818742,1740077445886,-570.15,0.00013863,2]
[353818744,1740077445897,-1882.52,0.00013863,2]
[353818746,1740077445907,-476.6464232,0.00013863,2]
[353818748,1740077445917,-1444.89,0.00013863,2]
[353818750,1740077445927,-500.0,0.00013863,2]
[353818752,1740077445936,-512.26772139,0.00013863,2]
[353818754,1740077445946,-500.0,0.00013863,2]
[353818756,1740077445956,-500.0,0.00013863,2]
[353818759,1740077445966,-556.08,0.00013863,2]
[353818761,1740077445975,-1178.56,0.00013863,2]
[353818764,1740077445985,-500.0,0.00013863,2]
[353818767,1740077445994,-500.0,0.00013863,2]
[353818770,1740077446004,-16808.24,0.00013863,2]
[353818773,1740077446018,-985.31,0.00013863,2]
[353818776,1740077446028,-2786.77,0.00013863,2]
[353818779,1740077446038,-1215.28,0.00013863,2]
[353818781,1740077446050,-556.94,0.00013863,2]
[353818783,1740077446059,-1191.46,0.00013863,2]
[353818785,1740077446069,-3073.52,0.00013863,2]
[353818787,1740077446078,-40867.69,0.00013863,2]
[353818789,1740077446088,-6841.19,0.00013863,2]
[353818791,1740077446097,-2377.75,0.00013863,2]
[353818793,1740077446108,-3817.15,0.00013863,2]
[353818795,1740077446118,-920.47,0.00013863,2]
[353818797,1740077446127,-1283.52,0.00013863,2]
[353818799,1740077446138,-500.0,0.00013863,2]
[353818802,1740077446148,-500.0,0.00013863,2]
[353818803,1740077446159,-500.0,0.00013863,2]
[353818805,1740077446169,-500.0,0.00013863,2]
[353818807,1740077446179,-500.0,0.00013863,2]
[353818810,1740077446189,-4061.03,0.00013863,2]
[353818812,1740077446199,-535.64,0.00013863,2]
[353818814,1740077446210,-500.0,0.00013863,2]
[353818816,1740077446220,-500.0,0.00013863,2]
[353818818,1740077446229,-500.0,0.00013863,2]
[353818820,1740077446239,-500.0,0.00013863,2]
[353818822,1740077446249,-2345.68,0.00013863,2]
[353818824,1740077446260,-500.0,0.00013863,2]
[353818826,1740077446269,-1779.96,0.00013863,2]
[353818828,1740077446279,-500.0,0.00013863,2]
[353818830,1740077446289,-766.59,0.00013863,2]
[353818832,1740077446298,-500.0,0.00013863,2]
[353818834,1740077446308,-1327.91,0.00013863,2]
[353818836,1740077446317,-500.0,0.00013863,2]
[353818838,1740077446328,-1733.51,0.00013863,2]
[353818840,1740077446338,-500.0,0.00013863,2]
[353818842,1740077446347,-5133.29,0.00013863,2]
[353818844,1740077446357,-1849.39,0.00013863,2]
[353818846,1740077446367,-2277.2,0.00013863,2]
[353818848,1740077446376,-500.0,0.00013863,2]
[353818850,1740077446385,-500.0,0.00013863,2]
[353818851,1740077446394,-1852.48,0.00013863,2]
[353818853,1740077446403,-500.0,0.00013863,2]
[353818856,1740077446413,-500.0,0.00013863,2]
[353818857,1740077446422,-500.0,0.00013863,2]
[353818860,1740077446431,-763.89,0.00013863,2]
[353818862,1740077446441,-500.0,0.00013863,2]
[353818863,1740077446451,-500.0,0.00013863,2]
[353818865,1740077446461,-500.0,0.00013863,2]
[353818868,1740077446471,-1350.36,0.00013863,2]
[353818870,1740077446480,-500.0,0.00013863,2]
[353818872,1740077446490,-15474.5,0.00013863,2]
[353818873,1740077446500,-500.0,0.00013945,2]
[353818875,1740077446510,-500.0,0.00013945,2]
[353818878,1740077446520,-500.0,0.00013945,2]
[353818880,1740077446529,-500.0,0.00013945,2]
[353818882,1740077446539,-633.71,0.00013945,2]
[353818884,1740077446549,-500.0,0.00013945,2]
[353818886,1740077446558,-299.97500029,0.00013945,2]
[353818888,1740077446567,-602.28,0.00013945,2]
[353818890,1740077446577,-500.0,0.00013945,2]
[353818892,1740077446586,-500.0,0.00013945,2]
[353818894,1740077446595,-500.0,0.00013945,2]
[353818896,1740077446604,-605.27,0.00013945,2]
[353818897,1740077446614,-500.0,0.00013945,2]
[353818900,1740077446623,-500.0,0.00013945,2]
[353818902,1740077446633,-476.16308693,0.00013945,2]
[353818904,1740077446642,-500.0,0.00013945,2]
[353818905,1740077446651,-500.0,0.00013945,2]
[353818907,1740077446662,-500.0,0.00013945,2]
[353818908,1740077446671,-500.0,0.00013945,2]
[353818910,1740077446681,-500.0,0.00013945,2]
[353818912,1740077446690,-500.0,0.00013945,2]
[353818914,1740077446699,-500.0,0.00013945,2]
[353818916,1740077446708,-500.0,0.00013945,2]
[353818918,1740077446719,-500.0,0.00013945,2]
[353818920,1740077446728,-664.37,0.00013945,2]
[353818922,1740077446738,-500.0,0.00013945,2]
[353818924,1740077446747,-500.0,0.00013945,2]
[353818926,1740077446756,-500.0,0.00013945,2]
[353818928,1740077446767,-868.35,0.00013945,2]
[353818930,1740077446776,-500.0,0.00013945,2]
[353818932,1740077446785,-547.01087436,0.00013945,2]
[353818934,1740077446795,-530.01,0.00013945,2]
[353818936,1740077446804,-1441.13,0.00013945,2]
[353818938,1740077446814,-557.02,0.00013945,2]
[353818940,1740077446823,-500.0,0.00013945,2]
[353818942,1740077446833,-205.39338985,0.00013945,2]
[353818944,1740077446842,-500.0,0.00013945,2]
[353818946,1740077446852,-500.0,0.00013945,2]
[353818948,1740077446861,-1035.85,0.00013945,2]
[353818949,1740077446871,-500.0,0.00013945,2]
[353818951,1740077446881,-596.47,0.00013945,2]
[353818953,1740077446890,-661.45,0.00013945,2]
[353818955,1740077446900,-500.0,0.00013945,2]
[353818957,1740077446909,-500.0,0.00013945,2]
[353818959,1740077446918,-638.35,0.00013945,2]
[353818961,1740077446927,-500.0,0.00013945,2]
[353818963,1740077446936,-500.0,0.00013945,2]
[353818965,1740077446947,-500.0,0.00013945,2]
[353818967,1740077446956,-500.0,0.00013945,2]
[353818969,1740077446967,-500.0,0.00013945,2]
[353818971,1740077446976,-708.23,0.00013945,2]
[353818973,1740077446985,-500.0,0.00013945,2]
[353818975,1740077446994,-500.0,0.00013945,2]
[353818977,1740077447003,-547.99,0.00013945,2]
[353818979,1740077447013,-500.0,0.00013945,2]
[353818981,1740077447022,-643.73,0.00013945,2]
[353818983,1740077447032,-500.0,0.00013945,2]
[353818985,1740077447043,-1109.9,0.00013945,2]
[353818987,1740077447053,-500.0,0.00013945,2]
[353818989,1740077447062,-500.0,0.00013945,2]
[353818991,1740077447071,-500.0,0.00013945,2]
[353818993,1740077447080,-307.51127372,0.00013945,2]
[353818995,1740077447090,-503.27,0.00013945,2]
[353818997,1740077447099,-500.0,0.00013945,2]
[353818999,1740077447109,-500.0,0.00013945,2]
[353819001,1740077447119,-500.0,0.00013945,2]
[353819003,1740077447128,-500.0,0.00013945,2]
[353819005,1740077447137,-500.0,0.00013945,2]
[353819007,1740077447147,-1365.79,0.00013945,2]
[353819008,1740077447156,-890.14,0.00013945,2]
[353819010,1740077447165,-500.0,0.00013945,2]
[353819012,1740077447174,-500.0,0.00013945,2]
[353819014,1740077447183,-500.0,0.00013945,2]
[353819016,1740077447193,-500.0,0.00013945,2]
[353819018,1740077447202,-500.0,0.00013945,2]
[353819020,1740077447212,-500.0,0.00013945,2]
[353819022,1740077447221,-337.822169,0.00013945,2]
[353819024,1740077447230,-500.0,0.00013945,2]
[353819026,1740077447239,-727.5,0.00013945,2]
[353819028,1740077447248,-518.62,0.00013945,2]
[353819030,1740077447258,-500.0,0.00013945,2]
[353819032,1740077447267,-740.12,0.00013945,2]
[353819034,1740077447276,-500.0,0.00013945,2]
[353819036,1740077447285,-500.0,0.00013945,2]
[353819038,1740077447301,-529.01,0.00013945,2]
[353819040,1740077447312,-573.79,0.00013945,2]
[353819042,1740077447325,-500.0,0.00013945,2]
[353819044,1740077447335,-500.0,0.00013945,2]
[353819046,1740077447344,-9108.22,0.00013945,2]
[353819048,1740077447353,-500.0,0.00013945,2]
[353819050,1740077447363,-3470.12,0.00013945,2]
[353819052,1740077447372,-2034.19,0.00013945,2]
[353819054,1740077447381,-500.0,0.00013945,2]
[353819056,1740077447391,-793.8,0.00013945,2]
[353819058,1740077447400,-500.0,0.00013945,2]
[353819060,1740077447409,-638.37,0.00013945,2]
[353819062,1740077447418,-3406.96,0.00013945,2]
[353819064,1740077447427,-722.19,0.00013945,2]
[353819066,1740077447436,-527.72618606,0.00013945,2]
[353819068,1740077447446,-570.15,0.00013945,2]
[353819070,1740077447455,-1882.52,0.00013945,2]
[353819072,1740077447465,-1444.89,0.00013945,2]
[353819074,1740077447474,-500.0,0.00013945,2]
[353819076,1740077447483,-500.0,0.00013945,2]
[353819078,1740077447492,-500.0,0.00013945,2]
[353819080,1740077447501,-556.08,0.00013945,2]
[353819082,1740077447512,-1178.56,0.00013945,2]
[353819084,1740077447521,-445.62761201,0.00013945,2]
[353819085,1740077447530,-418.57688245,0.00013945,2]
[353819087,1740077447540,-16808.24,0.00013945,2]
[353819089,1740077447549,-985.31,0.00013945,2]
[353819091,1740077447559,-2786.77,0.00013945,2]
[353819093,1740077447568,-1215.28,0.00013945,2]
[353819095,1740077447578,-556.94,0.00013945,2]
[353819097,1740077447587,-1191.46,0.00013945,2]
[353819099,1740077447596,-3073.52,0.00013945,2]
[353819101,1740077447605,-40867.69,0.00013945,2]